Cogmind - Beta 11 @@@ ROGUE MODE // 2022.03.27 @ 14:28:54 Player: RNGesus Result: Self-destructed Performance ------------- Evolutions (2) 1000 Regions Visited (5) 1000 Robots Destroyed (138) 690 Value Destroyed (3614) 3614 Prototype IDs (10) 200 Alien Tech Used (0) 0 Bonus (49) 49 TOTAL SCORE: 6553 Bonus ------- High Alert Combat Kills 84 Follower Combat Kills 32 Friendly Fire -67 Cogmind --------- Core Integrity 97/550 Matter 258/300 Energy 73/100 System Corruption 0% Temperature Cool (18) Movement Walking (540) Ox6 Location -8/Materials Parts ------- > --- POWER (1) -------- (None) > --- PROPULSION (3) --- Carbon-fiber Leg > --- UTILITY (5) ------ Huge Storage Unit Transport Network Coupler > --- WEAPON (2) ------- Cooled Particle Cannon Advanced Assault Cannon > --- INVENTORY (25) --- Carbon-fiber Leg Carbon-fiber Leg Carbon-fiber Leg Carbon-fiber Leg Improved VTOL Module Improved VTOL Module Improved Heat Sink Structural Scanner Machine Analyzer Experimental Sensor Array Improved Signal Interpreter Particle Charger Transmission Jammer Improved Light Armor Plating Hacking Suite System Shield Corruption Screen Corruption Screen System Restoration Module Advanced Beam Rifle Cooled Particle Cannon Cooled Particle Cannon Mini Grenade Launcher Katana Blade Saw Peak State ------------ > --- POWER ------------ Light Angular Momentum Engine > --- PROPULSION ------- Carbon-fiber Leg Improved Titanium Leg Flexi-carbon Leg > --- UTILITY ---------- Improved Heat Sink Huge Storage Unit Structural Scanner Transport Network Coupler Medium Armor Plating > --- WEAPON ----------- Cooled Particle Cannon Improved Assault Rifle > --- INVENTORY -------- Fission Core Compact Wheel Improved VTOL Module Advanced Heat Sink Structural Scanner Machine Analyzer Experimental Sensor Array Particle Charger Transmission Jammer Light Armor Plating Hacking Suite System Shield System Restoration Module Improved Medium Laser Autogun Improved Assault Rifle Improved Assault Rifle Improved Assault Rifle Improved Assault Rifle Improved Assault Rifle Advanced Assault Cannon Mini Grenade Launcher Heavy Hammer Katana Blade Saw [Rating: 41] Favorites ----------- Power Improved Ion Engine Engine Improved Ion Engine Power Core Fission Core Propulsion Light Treads Treads Light Treads Leg Carbon-fiber Leg Wheel Compact Wheel Flight Unit Improved VTOL Module Utility Medium Armor Plating Device Structural Scanner Storage High-capacity Storage Unit Processor Transport Network Coupler Protection Medium Armor Plating Weapon Improved Assault Rifle Energy Gun EM Pulse Gun Energy Cannon Cooled Particle Cannon Ballistic Gun Improved Assault Rifle Ballistic Cannon Advanced Assault Cannon Launcher Mini Grenade Launcher Impact Weapon Heavy Hammer Slashing Weapon Blade Saw Build | -11 -10 -10 -9 -9 -8 ------- Run | Scr Mat Min Mat Min Mat Slots Evolved 4 | . . . 2 . 2 Power . | . . . . . . Propulsion 1 | . . . 1 . . Utility 3 | . . . 1 . 2 Weapon . | . . . . . . Parts Attached 110 | 6 13 4 27 7 53 Power 10 | 1 1 . 3 . 5 Engine 7 | 1 1 . 3 . 2 Core 3 | . . . . . 3 Reactor . | . . . . . . Propulsion 32 | 2 2 . 10 2 16 Treads 16 | 2 2 . 10 1 1 Leg 7 | . . . . . 7 Wheel 7 | . . . . 1 6 Hover . | . . . . . . Flight 2 | . . . . . 2 Utility 25 | 1 6 . 6 1 11 Device 4 | . . . 1 . 3 Storage 5 | 1 3 . . . 1 Processor 1 | . . . . . 1 Hackware . | . . . . . . Protection 15 | . 3 . 5 1 6 Artifact . | . . . . . . Weapon 43 | 2 4 4 8 4 21 Energy Gun 9 | . 1 2 2 . 4 Energy Cannon 6 | . . . . . 6 Ballistic Gun 16 | 2 1 . 5 2 6 Ballistic Cannon 2 | . . . . . 2 Launcher 8 | . 2 1 1 2 2 Special Weapon . | . . . . . . Impact Weapon 1 | . . 1 . . . Slashing Weapon 1 | . . . . . 1 Piercing Weapon . | . . . . . . Special Melee Weapon . | . . . . . . Unidentified Prototypes 9 | . . . 3 . 6 Parts Lost 38 | . 2 1 6 1 28 Power 4 | . 1 . . . 3 Propulsion 11 | . . . 2 . 9 Utility 15 | . 1 . 3 . 11 Weapon 8 | . . 1 1 1 5 Highest Loss Streak 13 | . 1 1 2 1 13 To Critical Strikes . | . . . . . . Average Slot Usage (%) 93 | . 97 92 99 87 86 Engine 8 | . 14 14 11 11 . Core 1 | . . . . . 5 Treads 20 | . 28 28 32 11 1 Leg 4 | . . . . . 15 Wheel 2 | . . . . 10 7 Device 8 | . . . 10 11 15 Storage 11 | . 14 14 11 11 9 Processor 1 | . . . . . 6 Protection 10 | . 11 14 11 11 7 Energy Gun 2 | . 9 5 1 . . Energy Cannon 1 | . . . . . 4 Ballistic Gun 15 | . 18 14 20 19 8 Naked Turns . | . . . . . . Heaviest Build 109 | 10 57 56 61 61 109 Greatest Support 66 | 40 40 40 66 43 55 Greatest Overweight (x) 20 | 1 1 1 1 2 20 Average Overweight (x) 1 | . . 1 . 1 3 Largest Inventory Capacity 25 | 8 25 20 20 20 25 Average Capacity 21 | 7 19 20 20 20 24 Most Carried 25 | 3 15 15 20 20 25 Average Carried 17 | 2 10 14 17 19 21 Final Capacity 25 | 8 20 20 20 20 25 Final Carried 25 | 3 14 15 17 20 25 Class Distribution -------------------- 78% | Mutant 21% | Scavenger-Mutant Dominant Class ---------------- Mutant | -10/Materials Mutant | -10/Mines Mutant | -9/Materials Mutant | -9/Mines Scavenger-Mutant | -8/Materials Resources | -11 -10 -10 -9 -9 -8 ----------- Run | Scr Mat Min Mat Min Mat Matter Collected 2872 | 279 279 72 823 178 1241 Remotely . | . . . . . . Salvage Created 4705 | 121 498 196 1401 134 2355 Parts 303 | 3 46 20 101 7 126 Haulers Intercepted 10 | . 2 . 3 . 5 Recyclers Shooed 4 | . 2 . . . 2 Parts Field Recycled . | . . . . . . Retrieved Matter . | . . . . . . Parts Self-Destructed . | . . . . . . Prevented . | . . . . . . Kills | -11 -10 -10 -9 -9 -8 ------- Run | Scr Mat Min Mat Min Mat Combat Hostiles Destroyed 108 | . 17 8 32 13 38 Melee 1 | . . . . . 1 Guns 71 | . 8 6 29 4 24 Cannons 9 | . . . . . 9 AOE 27 | . 9 2 3 9 4 Classes Destroyed 15 | 2 5 . 3 2 3 Worker 9 | . 2 . 4 . 3 Builder 2 | . . . . . 2 Tunneler 4 | 2 . 2 . . . Hauler 10 | . 2 . 3 . 5 Recycler 3 | 1 . . . . 2 Operator 5 | . 2 . 2 . 1 Watcher 3 | . . . 2 . 1 Swarmer 32 | . 9 6 10 4 3 Grunt 45 | . 8 2 11 2 22 Duelist 1 | . . . 1 . . Sentry 21 | . . . 10 . 11 Demolisher 1 | . . . . 1 . Hunter 1 | . . . . . 1 Heavy 1 | . . . . . 1 Assembled 6 | . . . . 6 . Best Kill Streak 7 | 2 7 3 7 6 7 Combat Bots Only 6 | . 6 3 4 6 6 Max Kills in Single Turn 4 | 1 2 1 4 4 3 Gunslinging 1 | . . . . . 1 Exploded 4 | . 2 1 3 4 2 Melee 1 | . . . . . 1 Uniques/NPCs Destroyed . | . . . . . . Combat | -11 -10 -10 -9 -9 -8 -------- Run | Scr Mat Min Mat Min Mat Damage Taken 6685 | . 688 207 1530 670 3590 Core 834 | . 115 27 201 38 453 Absorbed by Shields . | . . . . . . Core Remaining (%) 61 | 100 . 43 . 40 . Volleys Fired 377 | 12 58 19 102 18 168 Largest 2 | 2 2 2 2 2 2 Hottest 180 | 40 60 60 79 46 180 Shots Fired 674 | 24 108 30 203 30 279 Gun 598 | 24 100 28 202 26 218 Cannon 58 | . . . . . 58 Launcher 18 | . 8 2 1 4 3 Special . | . . . . . . Kinetic 576 | 24 75 17 195 26 239 Thermal 55 | . . 11 7 . 37 Explosive 18 | . 8 2 1 4 3 Electromagnetic 25 | . 25 . . . . Robot Hit Streak 24 | 8 11 7 17 8 24 Robot Miss Streak 5 | 1 4 5 3 3 3 Penetration Max . | . . . . . . Secondary Targets 8 | . 1 1 1 1 4 Max Gunslinging Chain 1 | . 1 1 1 1 1 Shots Hit Robots 486 | 18 68 14 140 19 227 Core Hits 241 | 7 41 14 61 22 96 Critical Kills 2 | . . . . . 2 Critical Parts Destroyed 3 | 1 . . . . 2 Critical Strikes 12 | 1 . . . . 11 Burn 1 | . . . . . 1 Destroy 5 | 1 . . . . 4 Blast 2 | . . . . . 2 Sever 4 | . . . . . 4 Melee Attacks 40 | . . 15 . . 25 Impact 15 | . . 15 . . . Slashing 25 | . . . . . 25 Piercing . | . . . . . . Sneak Attacks 6 | . . 1 . . 5 Combat Hostiles . | . . . . . . Follow-up Attacks . | . . . . . . Damage Inflicted 9257 | 144 1197 286 2332 758 4540 Guns 5695 | 144 611 146 2051 232 2511 Cannons 1301 | . . . . . 1301 Explosions 1828 | . 579 92 281 526 350 Melee 426 | . . 48 . . 378 Ramming 7 | . 7 . . . . Kinetic 5782 | 144 398 79 1992 232 2937 Thermal 1194 | . 33 67 219 . 875 Explosive 1635 | . 546 92 121 526 350 Electromagnetic 213 | . 213 . . . . Impact 48 | . . 48 . . . Slashing 378 | . . . . . 378 Piercing . | . . . . . . Highest Corruption . | . . . . . . Average Corruption . | . . . . . . Corruption Purged . | . . . . . . Corruption Blocked . | . . . . . . Overload Shots 6 | . . . . . 6 Overflow Damage 80 | . 4 8 38 11 19 Projectiles . | . . . . . . Explosions 72 | . 4 . 38 11 19 Melee 8 | . . 8 . . . Knockbacks 5 | . . 1 . . 4 Impact 1 | . . 1 . . . Kinetic 3 | . . . . . 3 Secondary 1 | . . . . . 1 Self-Inflicted Damage 197 | . 82 . 100 15 . Shots 6 | . 3 . 1 2 . Rammed 1 | . 1 . . . . Targets Rammed 1 | . 1 . . . . Kicked . | . . . . . . Crushed . | . . . . . . Highest Temperature 146 | . 109 114 61 32 146 Average Temperature 21 | . 29 39 11 14 29 Received Heat Transfer 2349 | . 204 24 504 96 1521 Siege Activations . | . . . . . . Robots Corrupted . | . . . . . . Combat Hostiles . | . . . . . . Parts Fried 1 | . . 1 . . . Impact Corruptions 1 | . . 1 . . . Robots Melted . | . . . . . . Combat Hostiles . | . . . . . . Parts Melted 1 | . . . . . 1 Heat Transferred 1711 | . 50 150 275 . 1236 Parts Sabotaged . | . . . . . . Parts Stolen . | . . . . . . Parts Stripped . | . . . . . . Power Chain Reactions 1 | . 1 . . . . Missiles Intercepted . | . . . . . . Alert | -11 -10 -10 -9 -9 -8 ------- Run | Scr Mat Min Mat Min Mat Peak Influence 552 | 15 340 237 552 417 463 Initial 160 | . 9 91 1 160 88 Average 211 | 4 195 91 237 294 250 Maximum Alert Level 2 | . 1 1 2 2 2 Low Security (%) 48 | 100 54 77 47 26 31 Level 1 44 | . 45 22 34 69 61 Level 2 7 | . . . 18 3 6 Level 3 . | . . . . . . Level 4 . | . . . . . . Level 5 . | . . . . . . High Security . | . . . . . . Max Security . | . . . . . . Squads Dispatched 16 | . 4 . 2 1 9 Investigation 3 | . 1 . 1 1 . Extermination . | . . . . . . Reinforcement 10 | . 3 . 1 . 6 Assault . | . . . . . . Garrison 3 | . . . . . 3 Intercept . | . . . . . . Searches Triggered . | . . . . . . Construction Impeded 1 | . . . . . 1 Haulers Reinforced . | . . . . . . Active Scanning Responses . | . . . . . . Cargo Convoy Interrupts . | . . . . . . Stealth | -11 -10 -10 -9 -9 -8 --------- Run | Scr Mat Min Mat Min Mat Distress Signals 11 | . . . 3 . 8 Communications Jammed . | . . . . . . Distress Signals . | . . . . . . Times Spotted 183 | . 29 12 50 16 76 Peak Tracking Total 8 | . 6 3 4 6 8 Tactical Retreats 10 | . . . . 1 9 Traps | -11 -10 -10 -9 -9 -8 ------- Run | Scr Mat Min Mat Min Mat Traps Triggered 2 | . 1 . 1 . . Indirectly . | . . . . . . Trap Hack Attempts . | . . . . . . Triggered . | . . . . . . Disarmed . | . . . . . . Reprogrammed . | . . . . . . Reused . | . . . . . . Traps Extracted . | . . . . . . Installed . | . . . . . . Triggered . | . . . . . . Machines | -11 -10 -10 -9 -9 -8 ---------- Run | Scr Mat Min Mat Min Mat Machines Disabled 6 | . . 1 3 1 1 Max in Single Turn 2 | . . . 2 1 1 Machines Sabotaged . | . . . . . . Garrisons Compromised . | . . . . . . Overloaded Fab Kills . | . . . . . . Hacking | -11 -10 -10 -9 -9 -8 --------- Run | Scr Mat Min Mat Min Mat Machines Accessed 10 | . 1 . 5 1 3 Terminals 6 | . . . 4 . 2 Fabricators . | . . . . . . Repair Stations . | . . . . . . Recycling Units 1 | . 1 . . . . Scanalyzers 2 | . . . 1 . 1 Garrison Access . | . . . . . . Total Hacks 24 | . 1 . 13 1 9 Successful 19 | . 1 . 12 1 5 Failed 5 | . . . 1 . 4 Catastrophic . | . . . . . . Database Lockouts . | . . . . . . Manual 5 | . 1 . 2 . 2 Terminals 12 | . . . 7 . 5 Fabricators . | . . . . . . Repair Stations . | . . . . . . Recycling Units 1 | . 1 . . . . Scanalyzers 10 | . . . 6 . 4 Garrison Access . | . . . . . . Terminal Hacks 9 | . . . 5 1 3 Record 1 | . . . 1 . . Open Door 1 | . . . . 1 . Branch Access Points 1 | . . . . . 1 Terminal Index 1 | . . . 1 . . Alert Level 2 | . . . 1 . 1 Unreport Threat 2 | . . . 1 . 1 Hauler Manifests 1 | . . . 1 . . Fabricator Hacks . | . . . . . . Repair Station Hacks . | . . . . . . Recycling Unit Hacks . | . . . . . . Scanalyzer 8 | . . . 6 . 2 Insert Component 4 | . . . 3 . 1 Analyze 4 | . . . 3 . 1 Garrison Access Hacks . | . . . . . . Unauthorized Hacks 2 | . 1 . 1 . . Terminals 1 | . . . 1 . . Operators 1 | . . . 1 . . Fabricators . | . . . . . . Repair Stations . | . . . . . . Recycling Units 1 | . 1 . . . . Tunnel 1 | . 1 . . . . Scanalyzers . | . . . . . . Garrison Access . | . . . . . . Data Cores Recovered . | . . . . . . Used . | . . . . . . Hacking Detections 4 | . . . 2 . 2 Full Trace Events . | . . . . . . Feedback Events . | . . . . . . Feedback Blocked . | . . . . . . Robot Schematics Acquired . | . . . . . . Robots Built . | . . . . . . Authchips . | . . . . . . Time . | . . . . . . Total Robot Build Rating . | . . . . . . Part Schematics Acquired 3 | . . . 3 . . Parts Built . | . . . . . . Authchips . | . . . . . . Time . | . . . . . . Total Part Build Rating . | . . . . . . Parts Repaired . | . . . . . . Time . | . . . . . . Parts Recycled . | . . . . . . Recycled Matter . | . . . . . . Retrieved Matter . | . . . . . . Retrieved Components . | . . . . . . Parts Scanalyzed 4 | . . . 3 . 1 Part Schematics Acquired 3 | . . . 3 . . Parts Damaged . | . . . . . . Bothacking | -11 -10 -10 -9 -9 -8 ------------ Run | Scr Mat Min Mat Min Mat Used RIF Installer . | . . . . . . Robots Hacked . | . . . . . . Non-combat . | . . . . . . Combat . | . . . . . . Robot Hacks Applied . | . . . . . . Relay Couplers Released . | . . . . . . Fabnet Peak Effective % . | . . . . . . Robots Rewired . | . . . . . . Allies Hacked . | . . . . . . Hacks Repelled . | . . . . . . Allies | -11 -10 -10 -9 -9 -8 -------- Run | Scr Mat Min Mat Min Mat Total Allies 5 | . . 5 . . . Largest Group 5 | . . 5 1 . . Highest-Rated Group 86 | . . 86 15 . . Highest-Rated Ally 31 | . . 31 15 . . Total Orders . | . . . . . . Ally Attacks 26 | . . 26 . . . Total Damage 157 | . . 157 . . . Kills 4 | . . 4 . . . Allies Corrupted . | . . . . . . Allies Melted . | . . . . . . Intel | -11 -10 -10 -9 -9 -8 ------- Run | Scr Mat Min Mat Min Mat Robot Analysis Total . | . . . . . . Derelict Logs Recovered 1 | . . 1 . . . Drone Launches . | . . . . . . Drone Recoveries . | . . . . . . Exploration | -11 -10 -10 -9 -9 -8 ------------- Run | Scr Mat Min Mat Min Mat Turns Passed 8809 | 124 1639 1300 2616 426 2704 Spaces Moved 3818 | 56 621 502 1325 245 1069 Core 14 | 14 . . . . . Treads 2504 | 42 621 502 1325 14 . Legs 293 | . . . . . 293 Wheels 1001 | . . . . 231 770 Hover . | . . . . . . Flight 6 | . . . . . 6 Fastest Speed 50 | 50 160 240 160 130 116 Average Speed 192 | 144 234 240 170 136 188 Slowest Speed 1435 | 160 240 240 240 240 1435 Overloaded Moves . | . . . . . . Propulsion Burnouts . | . . . . . . Robots Hopped . | . . . . . . Cave-ins Triggered . | . . . . . . Exploration Rate (%) 72 | 5 95 98 95 54 85 Regions Visited 5 Branch Regions 2 Pre-discovered Areas 1 | . 1 . . . . Known Exits Taken . | . . . . . . Unknown Exits Taken 5 | 1 1 1 1 1 . Scrap Searched 2 | . . 1 . 1 . Spaces Dug 9 | . . . . . 9 Terrain Destroyed 156 | . 61 17 18 33 27 Melee . | . . . . . . Projectile 8 | . . . . . 8 AOE 148 | . 61 17 18 33 19 Terrain Rammed . | . . . . . . Walls Destroyed . | . . . . . . Machines Disabled . | . . . . . . Actions | -11 -10 -10 -9 -9 -8 --------- Run | Scr Mat Min Mat Min Mat Total 4573 | 78 707 544 1501 306 1437 Wait 84 | . 2 3 3 27 49 Move 3813 | 55 620 501 1324 244 1069 Hop . | . . . . . . Pick Up 75 | 5 10 2 18 5 35 Fast Attach 30 | 4 2 . 3 1 20 Attach 42 | 2 2 1 10 . 27 Detach 20 | . 1 . 5 1 13 Swap 38 | . 9 3 14 6 6 Drop 53 | . 2 . 22 4 25 Fire 377 | 12 58 19 102 18 168 Melee 40 | . . 15 . . 25 Ram . | . . . . . . Kick . | . . . . . . Crush 1 | . 1 . . . . Escape Stasis . | . . . . . . Rewire . | . . . . . . Trap . | . . . . . . Miscellaneous . | . . . . . . Route ------- -11/Scrapyard -10/Materials (discovered 4 exits: *Mat x3 / [*Min]) -10/Mines (discovered 2 exits: *Mat x2) -9/Materials (discovered 4 exits: *Mat x3 / *Min) -9/Mines -8/Materials (discovered 5 exits: [*Fac x3] / *Sto x2) History --------- Turn | Location | Event 16 | -11/Scrapyard | Discovered new exit (range 15) 125 | -11/Scrapyard | Entered Materials 313 | -10/Materials | Build established: Mutant 331 | -10/Materials | Discovered new exit (range 7) 697 | -10/Materials | Discovered new exit (range 16) 1202 | -10/Materials | Discovered new exit (range 10) 1512 | -10/Materials | Discovered new exit (range 7) 1764 | -10/Materials | Entered Mines 1861 | -10/Mines | Learned Materials garrison access intel 2015 | -10/Mines | Discovered new exit (range 9) 2142 | -10/Mines | Assisted by bots powering up and referring to "LRC-V3" 2529 | -10/Mines | Excavation squad dispatched 2529 | -10/Mines | A large section of the Mines collapsed 2724 | -10/Mines | Found a damaged Exp. Sensor Array with a note attached 2734 | -10/Mines | Found Prototype Device 2858 | -10/Mines | Core integrity fell below 50% 2897 | -10/Mines | Discovered new exit (range 3) 3064 | -10/Mines | Entered Materials 3064 | -9/Materials | Accompanied by 1 ally 3064 | -9/Materials | Evolved 2 slots: Propulsion x1, Utility x1 3319 | -9/Materials | Discovered new exit (range 3) 4158 | -9/Materials | Discovered new exit (range 16) 4294 | -9/Materials | Discovered new exit (range 4) 4528 | -9/Materials | Discovered new exit (range 3) 4590 | -9/Materials | Identified Exp. Sensor Array 5011 | -9/Materials | Core integrity fell below 50% 5680 | -9/Materials | Entered Mines 5689 | -9/Mines | Met a Derelict shopkeep closing up shop 5732 | -9/Mines | Met a Derelict bent on vengeance 5922 | -9/Mines | Assembled infested the area 5927 | -9/Mines | Assisted by a Guerilla fighting off Assembled 6091 | -9/Mines | Discovered new exit (range 5) 6106 | -9/Mines | Entered Materials 6106 | -8/Materials | Evolved 2 slots: Utility x2 6107 | -8/Materials | Loaded intel: 1 garrison access location 6159 | -8/Materials | Identified exit to Storage 6962 | -8/Materials | Discovered new exit (range 5) 7149 | -8/Materials | Garrison activated, responded to threat 7468 | -8/Materials | Lost 13 parts (1p5n3u4w) 7785 | -8/Materials | Discovered new exit (range 16) 7895 | -8/Materials | Build established: Scavenger-Mutant 8454 | -8/Materials | Discovered new exit (range 16) 8796 | -8/Materials | Core integrity fell below 50% 8809 | -8/Materials | Core integrity fell below 20% 8810 | -8/Materials | Self-destructed Last Messages --------------- 08786_ U-05 Engineer builds a Wall. 08786_ K-01 Serf collects debris. 08789_ U-05 Engineer destroyed. 08789_ Carbon-fiber Leg destroyed. 08789_ Knocked back. 08790_ Acquired 6 matter. 08790_ K-01 Serf collects debris. 08791_ K-01 Serf destroyed. 08795_ Penetrated by Slug. 08795_ Integration Channel disabled. 08795_ Structural Scanner destroyed. 08797_ Knocked back. 08800_ Penetrated by Slug. 08800_ Knocked back. 08802_ R-06 Scavenger collects Wheel. 08803_ H-61 Shepherd destroyed. 08803_ U-05 Engineer builds a Wall. 08804_ K-01 Serf collects debris. 08806_ R-06 Scavenger collects Lgt. Ion Engine. 08808_ U-05 Engineer builds a Wall. Map ----- +----------------------------------------------------+ | ?????????????????????## S"# ## % | | ?????????????????????## # ## """ """[ | | ?????????????????????## ! # ## """ """ | | ?????????????????????######### ## """ """ | | ?????????????????????######### ## | | ????????????????????????????## ########### | | ????????????????????########## ########### | | ????????????????????########## ##????????# | | ????????????????????## # #########?# | | ????????????????????## # #########?# | | ????????????????????## + | | ????????????????????## # ##########? | | ????????????????????## # ### ##? | | ????????????####????########## ### ##? | | ???????????? ????########## ### # ? | | ????????????? ????## ## ### # ? | | ????????????? ????## " # # ? | | ?????????????? ????## "T / """ # ? | | ?????????????? ????## # """ # ? | | ??????????????? ????## ###### """ # ? | | ??????????????? ????### ####### """ ##? | | ???????????????? ###?### # ??? # """ ##? | | ?????????? ####### + ??? # ##? | | ?????????########;###### #"??? # ### | | ????###?#### #"??? ###+##### | | ????## ###%r %%@ #"??? ## | | ????## > % =%% % % #"????## """ | | ????## ###!%%%"ggg"" k # ????##""""" | | ????###?## #u% "" g "" ## ????##""""" | | ?????????### """ """ ##?????##""""" | | ?????????### "" "" ##?? ## """ | | ??????????## """ """ ######### | | ????????"### """g """ ################ | | ????????"### """ """ ##### ###### | | ???????? # " " %% % ^ | | ????????## < % > | | ????????## % | | ????????######### ########+### % ###### | | ????????######### ##### ###+######## | | ???????????????## ##?## # ## | | ???????????????## ##?## """ # """ ???# | | ???????????????## ##?##* """ # """"" ## | | ???????????????## ##?## """ # """"" ## | | ???????????????## ##?##! # """"" ## | | ???????????????## ##?######### """ ## | | ???????????????## ##?######### ?????? ## | | ???????????????## ###???????## ???? ## | | ???????????????## ###???????###????###### | | ???????????????## #########?###????# | | ???????########## %#########?????????? | +----------------------------------------------------+ Best States ------------- Heat Dissipation 64 Energy Generation 18 Energy Capacity 310 Matter Stores 300 Matter Capacity 300 Sight Range 16 Terrain Scan Density 10 Armor Coverage 225 Evasion (%) 40 Recoil Reduction 3 Item Schematics ----------------- Exp. Sensor Array | -9/Materials | Scanalyzed Huge Storage Unit | -9/Materials | Scanalyzed Structural Scanner | -9/Materials | Scanalyzed Robot Schematics ------------------ None Fabricated ------------ Nothing Alien Tech Used ----------------- None Achievements -------------- None Challenges ------------ None Game ------ Seed ImprovedSuperchargedAnalyzer Manual? 0 Play Time 00:46:24 Cumulative 295.3 hours Start 2022.03.27 @ 13:34:13 End 2022.03.27 @ 14:28:54 Sessions 1 Manual Loads 0 Difficulty Rogue Special Mode None Game No. 445 Rogue 445 Adventurer 0 Explorer 0 Win Type - Total 5 Types 3/0/1/1/0/0/0/0/0 Lore% 79 Gallery% 80 Achievement% 63 Wizard Run 0 Options --------- ASCII 0 Keyboard 1 Movement Numpad Keybinds 0 Fullscreen 2 Font 24/Smallcaps Map View 76x50 Tactical HUD 1 Map Filters NONE Filters NONE Steam 1 RUN: ecfc3e82-af26-4a0e-ab0e-862b4c980c0f